fUSD/lending_fUSD_20241019
["ID","MTS","AMOUNT","RATE_DAILY","PERIOD"]
[340500256,1729356641429,-500.0,0.00024931,2]
[340500257,1729356641438,-500.0,0.00024931,2]
[340500258,1729356641447,-500.0,0.00024931,2]
[340500259,1729356641456,-500.0,0.00024931,2]
[340500260,1729356641465,-500.0,0.00024931,2]
[340500261,1729356641474,-500.0,0.00024931,2]
[340500262,1729356641482,-500.0,0.00024931,2]
[340500263,1729356641491,-500.0,0.00024931,2]
[340500264,1729356641500,-500.0,0.00024931,2]
[340500265,1729356641509,-500.0,0.00024931,2]
[340500266,1729356641518,-500.0,0.00024931,2]
[340500267,1729356641527,-500.0,0.00024931,2]
[340500268,1729356641536,-500.0,0.00024931,2]
[340500269,1729356641545,-500.0,0.00024931,2]
[340500270,1729356641554,-500.0,0.00024931,2]
[340500271,1729356641563,-500.0,0.00024931,2]
[340500272,1729356641572,-500.0,0.00024931,2]
[340500273,1729356641581,-500.0,0.00024931,2]
[340500274,1729356641590,-502.86345944,0.00024931,2]
[340500275,1729356641599,-500.0,0.00024931,2]
[340500276,1729356641608,-500.0,0.00024931,2]
[340500277,1729356641617,-500.0,0.00024931,2]
[340500278,1729356641626,-500.0,0.00024931,2]
[340500279,1729356641635,-500.0,0.00024931,2]
[340500280,1729356641644,-151.0,0.00024931,7]
[340500281,1729356641653,-151.0,0.00024931,7]
[340500282,1729356641662,-151.0,0.00024931,7]
[340500283,1729356641671,-208.713092,0.00024931,7]
[340500284,1729356641680,-151.0,0.00024931,7]
[340500285,1729356641689,-500.0,0.00024931,2]
[340500286,1729356641698,-500.0,0.00024931,2]
[340500287,1729356641707,-500.0,0.00024931,2]
[340500288,1729356641716,-495.85891658,0.00024931,2]
[340500289,1729356641725,-151.0,0.00024931,7]
[340500290,1729356641734,-500.0,0.00024931,7]
[340500291,1729356641742,-500.0,0.00024931,7]
[340500292,1729356641751,-500.0,0.00024931,7]
[340500293,1729356641760,-500.0,0.00024931,7]
[340500294,1729356641769,-500.0,0.00024931,7]
[340500295,1729356641778,-338.0234727,0.00024931,7]
[340500296,1729356641787,-500.0,0.00024931,2]
[340500297,1729356641796,-500.0,0.00024931,2]
[340500298,1729356641806,-500.0,0.00024931,2]
[340500299,1729356641815,-500.0,0.00024931,2]
[340500300,1729356641824,-500.0,0.00024931,2]
[340500301,1729356641834,-500.0,0.00024931,2]
[340500302,1729356641843,-525.14418021,0.00024931,2]
[340500303,1729356641852,-502.80718119,0.00024931,2]
[340500304,1729356641861,-500.0,0.00024931,2]
[340500305,1729356641870,-500.0,0.00024931,2]
[340500306,1729356641879,-184.54895882,0.00024931,2]
[340500307,1729356641888,-151.0,0.00024931,7]
[340500308,1729356641898,-500.0,0.00024931,2]
[340500309,1729356641907,-500.0,0.00024931,2]
[340500310,1729356641916,-500.0,0.00024931,2]
[340500311,1729356641925,-949.65,0.00024931,2]
[340500312,1729356641937,-949.65,0.00024931,2]
[340500313,1729356641946,-949.65,0.00024931,2]
[340500314,1729356641955,-949.65,0.00024931,2]
[340500315,1729356641965,-949.65,0.00024931,2]
[340500316,1729356641976,-949.65,0.00024931,2]
[340500317,1729356641985,-949.65,0.00024931,2]
[340500318,1729356641994,-949.65,0.00024931,2]
[340500319,1729356642004,-949.65,0.00024931,2]
[340500320,1729356642013,-949.65,0.00024931,2]
[340500321,1729356642023,-949.65,0.00024931,2]
[340500322,1729356642031,-949.65,0.00024931,2]
[340500323,1729356642040,-949.65,0.00024931,2]
[340500324,1729356642050,-151.0,0.00024931,7]
[340500325,1729356642059,-151.0,0.00024931,7]
[340500326,1729356642068,-151.0,0.00024931,7]
[340500327,1729356642078,-760.5,0.00024931,2]
[340500328,1729356642087,-760.5,0.00024931,2]
[340500330,1729356642224,-760.5,0.00024931,2]
[340500331,1729356642234,-533.54021065,0.00024931,2]
[340500332,1729356642244,-760.5,0.00024931,2]
[340500333,1729356642253,-760.5,0.00024931,2]
[340500335,1729356642263,-760.5,0.00024931,2]
[340500336,1729356642272,-760.5,0.00024931,2]
[340500337,1729356642281,-760.5,0.00024931,2]
[340500338,1729356642290,-760.5,0.00024931,2]
[340500339,1729356642300,-760.5,0.00024931,2]
[340500340,1729356642309,-760.5,0.00024931,2]
[340500341,1729356642319,-760.5,0.00024931,2]
[340500342,1729356642329,-760.5,0.00024931,2]
[340500343,1729356642337,-511.86268314,0.00024931,2]
[340500344,1729356642346,-266.517106,0.00024931,7]
[340500345,1729356642356,-510.00719474,0.00024931,2]
[340500346,1729356642365,-500.0,0.00024931,2]
[340500347,1729356642373,-500.0,0.00024931,2]
[340500348,1729356642382,-500.0,0.00024931,2]
[340500349,1729356642391,-500.0,0.00024931,2]
[340500350,1729356642400,-500.0,0.00024931,2]
[340500351,1729356642409,-500.0,0.00024931,2]
[340500352,1729356642418,-500.0,0.00024931,2]
[340500353,1729356642427,-500.0,0.00024931,2]
[340500354,1729356642436,-500.0,0.00024931,2]
[340500355,1729356642445,-500.0,0.00024931,2]
[340500356,1729356642454,-500.0,0.00024931,2]
[340500357,1729356642463,-500.0,0.00024931,2]
[340500358,1729356642472,-500.0,0.00024931,2]
[340500359,1729356642481,-544.48240917,0.00024931,2]
[340500360,1729356642490,-500.0,0.00024931,2]
[340500361,1729356642499,-500.0,0.00024931,2]
[340500363,1729356642508,-500.0,0.00024931,2]
[340500364,1729356642517,-500.0,0.00024931,2]
[340500365,1729356642526,-500.0,0.00024931,2]
[340500366,1729356642535,-500.0,0.00024931,2]
[340500367,1729356642543,-493.34930031,0.00024931,2]
[340500368,1729356642553,-500.0,0.00024931,2]
[340500369,1729356642562,-188.70308022,0.00024931,2]
[340500370,1729356642571,-661.53,0.00024931,2]
[340500371,1729356642580,-661.53,0.00024931,2]
[340500372,1729356642589,-661.53,0.00024931,2]
[340500373,1729356642597,-661.53,0.00024931,2]
[340500374,1729356642607,-562.74706675,0.00024931,2]
[340500375,1729356642615,-500.0,0.00024931,2]
[340500376,1729356642624,-500.0,0.00024931,2]
[340500377,1729356642633,-500.0,0.00024931,2]
[340500378,1729356642642,-500.0,0.00024931,2]
[340500379,1729356642651,-11628.9095029,0.00024945,5]
[340500380,1729356642660,-11626.9347482,0.00024956,5]
[340500381,1729356642669,-151.48,0.00024956,2]
[340500382,1729356642678,-151.0,0.00024956,7]
[340500383,1729356642687,-151.0,0.00024956,7]
[340500384,1729356642696,-151.0,0.00024956,7]
[340500385,1729356642704,-151.0,0.00024965,7]
[340500386,1729356642713,-500.0,0.00024965,2]
[340500387,1729356642722,-500.0,0.00024965,2]
[340500388,1729356642731,-151.0,0.00024965,7]
[340500389,1729356642740,-281.280886,0.00024965,7]
[340500390,1729356642749,-949.65,0.00024965,2]
[340500391,1729356642758,-760.5,0.00024965,2]
[340500392,1729356642767,-500.0,0.00024965,2]
[340500393,1729356642777,-127896.282231,0.00024966,5]
[340500394,1729356642786,-151.48,0.00024966,2]
[340500395,1729356642795,-151.48,0.00024966,2]
[340500396,1729356642804,-151.48,0.00024966,2]
[340500397,1729356642814,-151.48,0.00024966,2]
[340500398,1729356642824,-151.48,0.00024966,2]
[340500399,1729356642833,-151.48,0.00024966,2]
[340500400,1729356642842,-151.0,0.00024966,7]
[340500401,1729356642851,-151.0,0.00024966,7]
[340500402,1729356642861,-151.0,0.00024966,7]
[340500403,1729356642870,-151.0,0.00024966,7]
[340500404,1729356642879,-151.48,0.00024967,2]
[340500406,1729356642889,-151.48,0.00024967,2]
[340500407,1729356642898,-151.48,0.00024967,2]
[340500408,1729356642907,-151.48,0.00024967,2]
[340500409,1729356642917,-151.48,0.00024967,2]
[340500410,1729356642927,-151.48,0.00024967,2]
[340500411,1729356642938,-151.48,0.00024967,2]
[340500412,1729356642947,-151.48,0.00024967,2]
[340500413,1729356642956,-151.48,0.00024967,2]
[340500414,1729356642966,-500.0,0.00024973,2]
[340500415,1729356642975,-500.0,0.00024973,2]
[340500416,1729356642984,-151.48,0.00024973,2]
[340500417,1729356642993,-151.48,0.00024973,2]
[340500418,1729356643003,-661.53,0.00024974,2]
[340500419,1729356643012,-500.0,0.00024974,2]
[340500420,1729356643022,-150.0,0.00024975,30]
[340500421,1729356643031,-500.0,0.00024975,2]
[340500422,1729356643040,-500.0,0.00024975,2]
[340500423,1729356643049,-461.7652466,0.00024975,2]
[340500424,1729356643058,-500.0,0.00024975,2]
[340500425,1729356643067,-500.0,0.00024975,2]
[340500426,1729356643078,-242.6303852,0.00024975,2]
[340500427,1729356643087,-949.65,0.00024975,2]
[340500428,1729356643096,-949.65,0.00024975,2]
[340500429,1729356643105,-949.65,0.00024975,2]
[340500430,1729356643115,-500.0,0.00024975,2]
[340500431,1729356643124,-500.0,0.00024975,2]
[340500432,1729356643133,-500.0,0.00024975,2]
[340500433,1729356643142,-760.5,0.00024975,2]
[340500434,1729356643151,-760.5,0.00024975,2]
[340500435,1729356643160,-760.5,0.00024975,2]
[340500436,1729356643170,-600.0,0.00024975,2]
[340500437,1729356643179,-661.53,0.00024975,2]
[340500438,1729356643188,-661.53,0.00024975,2]
[340500439,1729356643198,-500.0,0.00024975,2]
[340500440,1729356643208,-500.0,0.00024975,2]
[340500441,1729356643217,-2500.0,0.00024976,5]
[340500442,1729356643227,-10000.0,0.00024976,2]
[340500443,1729356643236,-379264.67564391,0.00024976,5]
[340500444,1729356643621,-35.22593058,0.00024976,5]
[340500445,1729356645637,-4074.97816888,0.00021804,2]
[340500446,1729356645647,-150.0,0.00022746,2]
[340500447,1729356645656,-4074.97816888,0.00023352,2]
[340500448,1729356645666,-820.91821276,0.00024931,2]
[340500449,1729356645675,-734.0,0.00024976,2]
[340500450,1729356645684,-1516.22163066,0.00024976,5]
[340500451,1729356645747,-4832.66282915,0.00024976,5]
[340500452,1729356793038,500.0,0.00026784,120]
[340500453,1729357059471,317.67,0.0002603,120]
[340500454,1729357158314,-163.59,0.00010959,2]
[340500455,1729357395169,500.0,0.00026906,120]
[340500456,1729357649140,-168.83,0.00010959,2]
[340500457,1729357649162,-3533.87386229,0.00016324,2]
[340500458,1729357746095,-150.0,0.00010949,2]
[340500459,1729357746117,-6205.38633771,0.00016324,2]
[340500460,1729357746145,-300.0,0.00016437,2]
[340500461,1729357746171,-500.0,0.00016438,2]
[340500462,1729357746196,-500.0,0.00016438,2]
[340500463,1729357746222,-213.6,0.00016438,2]
[340500464,1729357746244,-12097.99389612,0.00016438,2]
[340500465,1729357746268,-158.06,0.00016712,2]
[340500466,1729357746292,-193.11,0.00017375,2]
[340500467,1729357746320,-420.0,0.00017964,2]
[340500468,1729357746343,-853.09,0.00019631,2]
[340500469,1729357746367,-354.76,0.00019631,2]
[340500470,1729357746389,-499.99,0.00019631,2]
[340500471,1729357746414,-587.0,0.00019631,2]
[340500472,1729357746438,-300.0,0.00020919,2]
[340500473,1729357746461,-9999.99,0.0002092,2]
[340500474,1729357746483,-20599.73,0.0002092,2]
[340500475,1729357746512,-619.6,0.0002092,2]
[340500476,1729357746535,-1500.0,0.00021438,2]
[340500477,1729357748550,3249.61949075,0.00016337,2]
[340500478,1729357764774,607.67,0.00020651,2]
[340500479,1729357777743,272.212,0.00021009,2]
[340500480,1729357801360,300.0,0.00019725,2]
[340500486,1729357831773,-176.99,0.0002162,2]
[340500487,1729357831783,-999.99,0.0002162,2]
[340500488,1729357831793,-250.0,0.00021628,2]
[340500489,1729357831802,-5110.82,0.000217,2]
[340500490,1729357831812,-6706.7,0.00022045,2]
[340500491,1729357831821,-4559.83994674,0.00022045,2]
[340500492,1729357831832,-1571.8,0.00022045,2]
[340500493,1729357831843,-664.83905779,0.00022045,2]
[340500494,1729357831857,-665.95,0.00022045,2]
[340500495,1729357831869,-4390.21581886,0.00022045,2]
[340500496,1729357831886,-679.71,0.00022045,2]
[340500497,1729357831897,-711.6,0.00022045,2]
[340500498,1729357831919,-2784.33364617,0.00022045,2]
[340500499,1729357831933,-947.8638113,0.00022045,2]
[340500500,1729357831947,-1366.00042613,0.00022045,2]
[340500501,1729357831959,-6917.33729301,0.00022045,2]
[340500502,1729357831969,-8229.28,0.00022045,2]
[340500503,1729357831978,-500.0,0.00022065,2]
[340500504,1729357831988,-500.0,0.00022073,2]
[340500505,1729357831997,-4777.91861202,0.00022073,2]
[340500506,1729357832009,-818.82444517,0.00022073,2]
[340500507,1729357832020,-867.99467088,0.00022073,2]
[340500508,1729357832062,-509.22801043,0.00022073,2]
[340500509,1729357832074,-500.0,0.00022073,2]
[340500512,1729357837705,-2526.0242615,0.00022073,2]
[340500513,1729357837714,-255.97,0.00022073,2]
[340500514,1729357837723,-4902.79,0.00022122,2]
[340500515,1729357837732,-150.99,0.00022122,2]
[340500516,1729357837741,-11215.1,0.00022232,2]
[340500518,1729357837750,-956.83,0.00022258,2]
[340500519,1729357837760,-150.03,0.00022524,2]
[340500520,1729357837768,-544.78,0.00022565,2]
[340500521,1729357837778,-150.0,0.00022637,2]
[340500522,1729357837787,-659.53,0.00022643,2]
[340500523,1729357837796,-2059.82,0.00022672,2]
[340500524,1729357837805,-3566.0,0.000227,5]
[340500525,1729357837814,-3806.0061,0.00022734,2]
[340500526,1729357837823,-3193.4041172,0.00022734,2]
[340500527,1729357837832,-250.0,0.00022772,2]
[340500528,1729357837841,-366.7529,0.00022831,2]
[340500529,1729357837850,-417.6897,0.00022831,2]
[340500530,1729357837859,-9756.03650491,0.00022834,2]
[340500531,1729357837870,-562.98582958,0.00022834,2]
[340500532,1729357837881,-794.86802,0.00022834,2]
[340500533,1729357837892,-988.63282662,0.00022834,2]
[340500534,1729357837903,-7438.13842549,0.00022834,2]
[340500535,1729357837915,-1233.64916876,0.00022834,2]
[340500536,1729357837925,-3125.68922464,0.00022834,2]
[340500537,1729357837935,-6604.389,0.00022834,2]
[340500538,1729357837944,-2751.0,0.00022836,2]
[340500539,1729357837952,-250.0,0.00022855,2]
[340500540,1729357837962,-200.0,0.00022888,2]
[340500541,1729357837970,-607.67,0.00022915,2]
[340500542,1729357837980,-3193.40411716,0.00022975,2]
[340500543,1729357837988,-317.67,0.00023138,2]
[340500544,1729357837998,-940.49,0.00023152,2]
[340500545,1729357838007,-3193.40411716,0.00023215,2]
[340500546,1729357838016,-1000.0,0.00023378,2]
[340500547,1729357838025,-1000.0,0.00023442,2]
[340500548,1729357838034,-3193.40411716,0.00023456,2]
[340500549,1729357838043,-228.0,0.00023612,2]
[340500550,1729357838053,-200.83,0.00023684,2]
[340500551,1729357838062,-856.68,0.00023687,3]
[340500552,1729357838072,-544.78,0.00023693,2]
[340500553,1729357838081,-3193.40411716,0.00023697,2]
[340500554,1729357838091,-249.31429123,0.00023937,2]
[340500555,1729357838103,-2944.08982593,0.00023937,2]
[340500556,1729357838112,-318.45938104,0.00023991,2]
[340500557,1729357838121,-581.06440528,0.00023992,5]
[340500558,1729357838133,-21188.65859472,0.00023992,5]
[340500559,1729357838143,-193.65,0.00024,2]
[340500560,1729357838152,-150.0,0.00024,2]
[340500561,1729357838161,-150.0,0.00024074,2]
[340500562,1729357838170,-2321.36405654,0.00024074,2]
[340500563,1729357838182,-2146.17360397,0.00024074,2]
[340500564,1729357838193,-837.99333949,0.00024074,2]
[340500565,1729357838202,-180.404,0.00024074,2]
[340500566,1729357838211,-3479.60266051,0.00024074,2]
[340500567,1729357838223,-1400.40933949,0.00024074,2]
[340500568,1729357838232,-405.1934594,0.0002412,2]
[340500569,1729357838241,-3193.40411716,0.00024178,2]
[340500570,1729357838251,-3193.40411716,0.00024419,2]
[340500571,1729357838260,-150.0,0.00024582,2]
[340500572,1729357838269,-405.1934594,0.00024627,2]
[340500573,1729357838278,-500.0,0.00024658,7]
[340500574,1729357838288,-2269.10519283,0.00024659,2]
[340500575,1729357838299,-924.29892433,0.00024659,2]
[340500576,1729357838308,-227.76902054,0.0002473,2]
[340500577,1729357838319,-1402.85426956,0.0002473,2]
[340500578,1729357838329,-317.89966513,0.00024766,2]
[340500580,1729357838340,-5974.7917284,0.00024766,2]
[340500581,1729357838351,-1207.30860647,0.00024766,2]
[340500582,1729357838360,-306.64389935,0.00024766,2]
[340500583,1729357838370,-169.99921631,0.00024776,2]
[340500584,1729357838379,-405.1934595,0.00024793,2]
[340500585,1729357838389,-306.64389935,0.000248,2]
[340500586,1729357838399,-544.78,0.00024822,2]
[340500587,1729357838408,-169.9992163,0.00024823,2]
[340500588,1729357838418,-306.64389935,0.00024833,2]
[340500589,1729357838427,-63416.9992688,0.00024856,5]
[340500590,1729357838437,-529.68370614,0.00024865,2]
[340500591,1729357838447,-68353.88642245,0.00024866,5]
[340500592,1729357838458,-6896.70624383,0.00024866,5]
[340500593,1729357838470,-19099.21,0.00024866,5]
[340500594,1729357838481,-6057.23386798,0.00024866,5]
[340500595,1729357838493,-13271.56862149,0.00024866,5]
[340500596,1729357838504,-24654.16122351,0.00024866,5]
[340500597,1729357838516,-22243.24876,0.00024866,5]
[340500598,1729357838527,-800.67916805,0.00024866,5]
[340500599,1729357838539,-459.01463883,0.00024866,5]
[340500600,1729357838560,-3353.94450525,0.00024866,5]
[340500601,1729357838573,-14491.84447661,0.00024866,5]
[340500602,1729357838583,-118743.163386,0.00024866,5]
[340500603,1729357838594,-151.49,0.00024866,2]
[340500604,1729357838604,-151.49,0.00024866,2]
[340500605,1729357838613,-160.50420832,0.00024866,2]
[340500606,1729357838623,-306.64389935,0.00024867,2]
[340500607,1729357838633,-169.9992163,0.00024869,2]
[340500608,1729357838644,-554.1177316,0.00024873,2]
[340500609,1729357838654,-9895.2636155,0.00024873,5]
[340500610,1729357838665,-1927.3296,0.00024876,2]
[340500611,1729357838674,-1000.0,0.00024876,2]
[340500612,1729357838684,-33239.966,0.00024876,2]
[340500613,1729357838693,-245000.0,0.00024876,2]
[340500614,1729357838703,-100000.0,0.00024876,2]
[340500615,1729357838713,-15900.0068,0.00024876,2]
[340500616,1729357838722,-208.92253352,0.00024876,2]
[340500617,1729357838732,-151.94,0.00024877,30]
[340500618,1729357838742,-3193.40411716,0.000249,2]
[340500619,1729357838752,-310.97908956,0.000249,2]
[340500620,1729357838761,-306.64389935,0.000249,2]
[340500621,1729357838771,-151.49,0.00024911,2]
[340500622,1729357838780,-9895.2636155,0.00024921,5]
[340500623,1729357838790,-500.0,0.00024931,2]
[340500624,1729357838800,-500.0,0.00024931,2]
[340500625,1729357838809,-500.0,0.00024931,2]
[340500626,1729357838818,-500.0,0.00024931,2]
[340500627,1729357838827,-500.0,0.00024931,2]
[340500628,1729357838836,-500.0,0.00024931,2]
[340500629,1729357838845,-500.0,0.00024931,2]
[340500630,1729357838855,-500.0,0.00024931,2]
[340500631,1729357838864,-500.0,0.00024931,2]
[340500632,1729357838874,-500.0,0.00024931,2]
[340500633,1729357838883,-500.0,0.00024931,2]
[340500634,1729357838895,-500.0,0.00024931,2]
[340500635,1729357838906,-500.0,0.00024931,2]
[340500636,1729357838915,-500.0,0.00024931,2]
[340500637,1729357838925,-500.0,0.00024931,2]
[340500638,1729357838934,-500.0,0.00024931,2]
[340500639,1729357838944,-500.0,0.00024931,2]
[340500640,1729357838953,-500.0,0.00024931,2]
[340500641,1729357838963,-187.19130422,0.00024931,2]
[340500642,1729357838972,-500.0,0.00024931,2]
[340500643,1729357838981,-500.0,0.00024931,2]
[340500644,1729357838990,-500.0,0.00024931,2]
[340500645,1729357838999,-424.86536128,0.00024931,2]
[340500646,1729357839009,-500.0,0.00024931,2]
[340500647,1729357839018,-500.0,0.00024931,2]
[340500648,1729357839027,-500.0,0.00024931,2]
[340500649,1729357839037,-500.0,0.00024931,2]
[340500650,1729357839047,-313.17294421,0.00024931,2]
[340500651,1729357839056,-500.0,0.00024931,2]
[340500652,1729357839066,-500.0,0.00024931,2]
[340500653,1729357839075,-500.0,0.00024931,2]
[340500654,1729357839084,-500.0,0.00024931,2]
[340500655,1729357839095,-500.0,0.00024931,2]
[340500656,1729357839104,-500.0,0.00024931,2]
[340500657,1729357839114,-500.0,0.00024931,2]
[340500658,1729357839123,-500.0,0.00024931,2]
[340500659,1729357839133,-500.0,0.00024931,2]
[340500660,1729357839144,-528.87869923,0.00024931,2]
[340500661,1729357839154,-500.0,0.00024931,2]
[340500662,1729357839164,-500.0,0.00024931,2]
[340500663,1729357839173,-500.0,0.00024931,2]
[340500664,1729357839183,-9895.2636155,0.00024935,5]
[340500665,1729357839197,-9895.2636155,0.00024939,5]
[340500666,1729357839206,-19790.527231,0.00024945,5]
[340500667,1729357839216,-19790.527231,0.00024946,5]
[340500668,1729357839226,-36108.49321382,0.00024955,2]
[340500669,1729357839235,-500.0,0.00024955,2]
[340500670,1729357839245,-9895.2636155,0.00024956,5]
[340500671,1729357839254,-151.49,0.00024956,2]
[340500672,1729357839264,-49476.3180775,0.00024959,5]
[340500673,1729357839273,-375.0,0.00024965,2]
[340500674,1729357839284,-500.0,0.00024965,2]
[340500675,1729357839293,-343.25789076,0.00024965,2]
[340500676,1729357839303,-500.0,0.00024965,2]
[340500677,1729357839312,-711.0,0.00024965,2]
[340500678,1729357839321,-9895.2636155,0.00024966,5]
[340500679,1729357839330,-151.49,0.00024966,2]
[340500680,1729357839340,-500.0,0.00024966,2]
[340500681,1729357839349,-151.49,0.00024967,2]
[340500682,1729357839358,-151.49,0.00024967,2]
[340500683,1729357839368,-151.49,0.00024967,2]
[340500684,1729357839377,-151.49,0.00024967,2]
[340500685,1729357839386,-151.49,0.00024967,2]
[340500686,1729357839397,-151.0,0.00024969,7]
[340500687,1729357839407,-151.0,0.00024969,7]
[340500688,1729357839416,-11353.1424115,0.00024969,2]
[340500689,1729357839425,-842.760965,0.00024969,7]
[340500690,1729357839434,-151.0,0.00024969,7]
[340500691,1729357839444,-842.760965,0.00024969,7]
[340500692,1729357839453,-151.0,0.00024969,7]
[340500693,1729357839462,-151.0,0.00024969,7]
[340500694,1729357839471,-151.0,0.00024969,7]
[340500695,1729357839480,-44036.6701041,0.00024969,2]
[340500696,1729357839489,-789.4783499,0.00024969,2]
[340500697,1729357839499,-500.0,0.00024973,2]
[340500698,1729357839509,-151.49,0.00024973,2]
[340500699,1729357839518,-500.0,0.00024974,2]
[340500700,1729357839527,-500.0,0.00024974,2]
[340500701,1729357839536,-500.0,0.00024974,2]
[340500702,1729357839545,-410.45910638,0.00024975,2]
[340500703,1729357839555,-500.0,0.00024975,2]
[340500704,1729357839564,-500.0,0.00024975,2]
[340500705,1729357839573,-500.0,0.00024975,2]
[340500706,1729357839583,-500.0,0.00024975,2]
[340500707,1729357839593,-500.0,0.00024975,2]
[340500709,1729357839602,-500.0,0.00024975,2]
[340500711,1729357839612,-500.0,0.00024975,2]
[340500712,1729357839621,-512.43317301,0.00024975,2]
[340500713,1729357839630,-544.20717455,0.00024975,2]
[340500714,1729357839639,-2500.0,0.00024976,5]
[340500715,1729357839652,-171775.88442172,0.00024976,5]
[340500716,1729357839852,-705.09885338,0.00024976,5]
[340500717,1729357839864,-27093.4518956,0.00024976,5]
[340500718,1729357839875,-1922.01009,0.00024976,5]
[340500719,1729357839894,-6561.3342756,0.00024976,5]
[340500720,1729357839906,-406.289999,0.00024976,5]
[340500721,1729357839917,-1564.4607032,0.00024976,5]
[340500722,1729357839929,-1514.169996,0.00024976,5]
[340500723,1729357839940,-271.32981511,0.00024976,5]
[340500724,1729357839952,-295.69770592,0.00024976,5]
[340500725,1729357840010,-7624.07887161,0.00024976,5]
[340500726,1729357840021,-18860.23635234,0.00024976,5]
[340500727,1729357840031,-4896.47659168,0.00024976,5]
[340500728,1729357840041,-151.0,0.00024976,7]
[340500730,1729357840050,-500.0,0.00024976,2]
[340500732,1729357840059,-500.0,0.00024976,2]
[340500734,1729357840069,-500.0,0.00024976,2]
[340500736,1729357840078,-500.0,0.00024976,2]
[340500738,1729357840087,-500.0,0.00024976,2]
[340500740,1729357840096,-500.0,0.00024976,2]
[340500742,1729357840105,-180.48,0.00024976,2]
[340500744,1729357840114,-151.0,0.00024976,7]
[340500746,1729357840124,-151.0,0.00024976,7]
[340500748,1729357840133,-151.0,0.00024976,7]
[340500750,1729357840142,-151.0,0.00024976,7]
[340500751,1729357840152,-500.0,0.00024976,2]
[340500754,1729357840162,-500.0,0.00024976,2]
[340500755,1729357840171,-500.0,0.00024976,2]
[340500758,1729357840180,-323.68625144,0.00024976,2]
[340500760,1729357840193,-151.0,0.00024976,7]
[340500762,1729357840203,-151.0,0.00024976,7]
[340500764,1729357840212,-500.0,0.00024976,2]
[340500765,1729357840221,-316.37080454,0.00024976,2]
[340500857,1729357841944,250.0,0.0001,2]
[340500868,1729357842914,-183.62919546,0.00024976,2]
[340500869,1729357842923,-500.0,0.00024976,2]
[340500870,1729357842933,-500.0,0.00024976,2]
[340500871,1729357842942,-519.250036,0.00024976,7]
[340500872,1729357842952,-519.250036,0.00024976,7]
[340500873,1729357842961,-151.0,0.00024976,7]
[340500874,1729357842970,-151.49,0.00024976,2]
[340500875,1729357842980,-151.49,0.00024976,2]
[340500876,1729357842989,-1804.94568995,0.00024977,5]
[340500877,1729357843016,300.0,0.00012,2]
[340500878,1729357843028,-68100.0,0.00024977,5]
[340500883,1729357844091,350.0,0.00014,2]
[340500884,1729357845234,400.0,0.00016,2]
[340500887,1729357845646,-1666.15,0.00024977,5]
[340500890,1729357845703,-3416.65730887,0.00024977,5]
[340500891,1729357845715,-66702.40437154,0.00024977,5]
[340500892,1729357845726,-1264.7968584,0.00024977,5]
[340500893,1729357845737,-1701.15,0.00024977,5]
[340500894,1729357845760,-5399.99530325,0.00024977,5]
[340500895,1729357845772,-66602.06076622,0.00024977,5]
[340500896,1729357845871,-66741.59788933,0.00024977,5]
[340500897,1729357845928,-48506.41917312,0.00024977,5]